fUST/lending_fUST_20240719
["ID","MTS","AMOUNT","RATE_DAILY","PERIOD"]
[332615806,1721353842533,-501.48827337,0.00019178,2]
[332615807,1721353842542,-500.0,0.00019178,2]
[332615808,1721353842551,-500.0,0.00019178,2]
[332615809,1721353842561,-603.22049435,0.00019178,2]
[332615810,1721353842570,-500.0,0.00019178,2]
[332615811,1721353842579,-500.0,0.00019178,2]
[332615812,1721353842589,-550.08695448,0.00019178,2]
[332615813,1721353842598,-500.0,0.00019178,2]
[332615814,1721353842607,-500.0,0.00019178,2]
[332615815,1721353842617,-500.0,0.00019178,2]
[332615816,1721353842627,-544.31,0.00019178,2]
[332615817,1721353842637,-500.0,0.00019178,2]
[332615818,1721353842647,-500.0,0.00019178,2]
[332615819,1721353842656,-500.0,0.00019178,2]
[332615820,1721353842667,-502.77171969,0.00019178,2]
[332615821,1721353842677,-500.0,0.00019178,2]
[332615822,1721353842686,-500.0,0.00019178,2]
[332615823,1721353842696,-500.0,0.00019178,2]
[332615824,1721353842710,-505.24748289,0.00019178,2]
[332615825,1721353842720,-500.0,0.00019178,2]
[332615826,1721353842730,-500.0,0.00019178,2]
[332615827,1721353842739,-500.0,0.00019178,2]
[332615828,1721353842749,-313.00457431,0.00019178,2]
[332615829,1721353842758,-500.0,0.00019178,2]
[332615830,1721353842768,-2418.35,0.00019178,2]
[332615831,1721353842777,-516.86,0.00019178,2]
[332615832,1721353842787,-517.89249247,0.00019178,2]
[332615833,1721353842798,-500.0,0.00019178,2]
[332615834,1721353842808,-514.78540997,0.00019178,2]
[332615835,1721353842818,-500.0,0.00019178,2]
[332615836,1721353842827,-503.41132854,0.00019178,2]
[332615837,1721353842839,-500.0,0.00019178,2]
[332615838,1721353842852,-500.0,0.00019178,2]
[332615839,1721353842861,-504.92754036,0.00019178,2]
[332615840,1721353842871,-500.0,0.00019178,2]
[332615841,1721353842881,-500.0,0.00019178,2]
[332615842,1721353842891,-500.0,0.00019178,2]
[332615843,1721353842900,-500.0,0.00019178,2]
[332615844,1721353842910,-496.63393055,0.00019178,2]
[332615845,1721353842919,-500.0,0.00019178,2]
[332615846,1721353842928,-532.57931181,0.00019178,2]
[332615847,1721353842939,-500.0,0.00019178,2]
[332615848,1721353842949,-500.0,0.00019178,2]
[332615849,1721353842960,-1185.62,0.00019178,2]
[332615850,1721353842970,-500.0,0.00019178,2]
[332615851,1721353842979,-500.0,0.00019178,2]
[332615852,1721353842989,-500.0,0.00019178,2]
[332615853,1721353842999,-500.0,0.00019178,2]
[332615854,1721353843011,-762.95,0.00019178,2]
[332615855,1721353843022,-500.0,0.00019178,2]
[332615856,1721353843033,-382.40455992,0.00019178,2]
[332615857,1721353843045,-768.58,0.00019178,2]
[332615858,1721353843058,-500.0,0.00019178,2]
[332615859,1721353843069,-500.0,0.00019178,2]
[332615861,1721353843078,-500.0,0.00019178,2]
[332615862,1721353843089,-3421.72,0.00019178,2]
[332615863,1721353843099,-500.0,0.00019178,2]
[332615864,1721353843108,-500.0,0.00019178,2]
[332615865,1721353843117,-887.09,0.00019178,2]
[332615866,1721353843126,-573.50308911,0.00019178,2]
[332615867,1721353843138,-500.0,0.00019178,2]
[332615868,1721353843148,-500.0,0.00019178,2]
[332615869,1721353843158,-364.8181918,0.00019178,2]
[332615870,1721353843167,-500.0,0.00019178,2]
[332615871,1721353843177,-1315.09,0.00019178,2]
[332615872,1721353843187,-500.0,0.00019178,2]
[332615873,1721353843197,-500.0,0.00019178,2]
[332615874,1721353843208,-500.0,0.00019178,2]
[332615875,1721353843217,-512.20423977,0.00019178,2]
[332615876,1721353843226,-500.0,0.00019178,2]
[332615877,1721353843235,-500.0,0.00019178,2]
[332615879,1721353843245,-553.72,0.00019178,2]
[332615880,1721353843254,-659.14,0.00019178,2]
[332615881,1721353843266,-504.95620038,0.00019178,2]
[332615882,1721353843279,-500.0,0.00019178,2]
[332615883,1721353843289,-500.0,0.00019178,2]
[332615884,1721353843299,-500.0,0.00019178,2]
[332615885,1721353843309,-3508.44,0.00019178,2]
[332615886,1721353843318,-661.13,0.00019178,2]
[332615887,1721353843328,-500.0,0.00019178,2]
[332615888,1721353843339,-2612.13,0.00019178,2]
[332615889,1721353843349,-553.35,0.00019178,2]
[332615890,1721353843360,-500.0,0.00019178,2]
[332615891,1721353843372,-1525.67,0.00019178,2]
[332615892,1721353843382,-500.0,0.00019178,2]
[332615894,1721353843391,-500.0,0.00019178,2]
[332615896,1721353843402,-513.30378212,0.00019178,2]
[332615897,1721353843413,-1076.72,0.00019178,2]
[332615898,1721353843425,-500.0,0.00019178,2]
[332615899,1721353843435,-501.63057201,0.00019178,2]
[332615900,1721353843445,-151.0,0.00019178,2]
[332615901,1721353843457,-151.0,0.00019178,2]
[332615902,1721353843466,-151.0,0.00019178,2]
[332615903,1721353843475,-151.0,0.00019178,2]
[332615904,1721353843484,-151.0,0.00019178,2]
[332615905,1721353843494,-151.0,0.00019178,2]
[332615906,1721353843504,-702.1,0.00019178,2]
[332615907,1721353843516,-500.0,0.00019178,2]
[332615908,1721353843528,-151.0,0.00019178,2]
[332615909,1721353843539,-151.0,0.00019178,2]
[332615910,1721353843550,-237.003861,0.00019178,2]
[332615911,1721353843560,-501.62309351,0.00019178,2]
[332615912,1721353843571,-500.0,0.00019178,2]
[332615913,1721353843582,-658.45,0.00019178,2]
[332615914,1721353843592,-342.52461219,0.00019178,2]
[332615915,1721353843605,-500.0,0.00019178,2]
[332615916,1721353843617,-877.85,0.00019178,2]
[332615917,1721353843628,-500.0,0.00019178,2]
[332615918,1721353843640,-500.0,0.00019178,2]
[332615919,1721353843651,-500.0,0.00019178,2]
[332615920,1721353843662,-500.0,0.00019178,2]
[332615921,1721353843673,-500.0,0.00019178,2]
[332615922,1721353843683,-500.0,0.00019178,2]
[332615923,1721353843693,-521.81,0.00019178,2]
[332615924,1721353843703,-523.23,0.00019178,2]
[332615925,1721353843717,-1239.55,0.00019178,2]
[332615926,1721353843727,-500.0,0.00019178,2]
[332615927,1721353843736,-501.09355903,0.00019178,2]
[332615928,1721353843748,-500.0,0.00019178,2]
[332615929,1721353843757,-500.0,0.00019178,2]
[332615930,1721353843780,-500.0,0.00019178,2]
[332615933,1721353843790,-264.35495113,0.00019178,2]
[332615934,1721353843801,-500.0,0.00019178,2]
[332615935,1721353843810,-500.0,0.00019178,2]
[332615936,1721353843820,-500.0,0.00019178,2]
[332615937,1721353843830,-500.0,0.00019178,2]
[332615938,1721353843840,-500.99256661,0.00019178,2]
[332615939,1721353843850,-500.0,0.00019178,2]
[332615940,1721353843860,-500.0,0.00019178,2]
[332615941,1721353843870,-2486.62,0.00019178,2]
[332615942,1721353843880,-500.0,0.00019178,2]
[332615943,1721353843889,-1915.18,0.00019178,2]
[332615944,1721353843899,-500.0,0.00019178,2]
[332615945,1721353843909,-965.19,0.00019178,2]
[332615946,1721353843918,-500.0,0.00019178,2]
[332615947,1721353843928,-2059.02,0.00019178,2]
[332615948,1721353843937,-500.0,0.00019178,2]
[332615949,1721353843948,-500.0,0.00019178,2]
[332615950,1721353843959,-505.02112383,0.00019178,2]
[332615951,1721353843968,-500.0,0.00019178,2]
[332615952,1721353843978,-460.95020587,0.00019178,2]
[332615953,1721353843987,-500.0,0.00019178,2]
[332615954,1721353843997,-500.0,0.00019178,2]
[332615956,1721353844006,-724.11,0.00019178,2]
[332615957,1721353844016,-500.0,0.00019178,2]
[332615958,1721353844025,-500.0,0.00019178,2]
[332615959,1721353844035,-500.0,0.00019178,2]
[332615960,1721353844045,-500.0,0.00019178,2]
[332615961,1721353844058,-500.0,0.00019178,2]
[332615962,1721353844068,-4505.76,0.00019178,2]
[332615963,1721353844245,-731.04,0.00019178,2]
[332615964,1721353844255,-500.0,0.00019178,2]
[332615965,1721353844265,-626.69,0.00019178,2]
[332615966,1721353844274,-500.0,0.00019178,2]
[332615967,1721353844283,-500.0,0.00019178,2]
[332615968,1721353844293,-500.0,0.00019178,2]
[332615969,1721353844303,-2154.26,0.00019178,2]
[332615970,1721353844313,-1865.03,0.00019178,2]
[332615971,1721353844322,-500.0,0.00019178,2]
[332615972,1721353844333,-500.0,0.00019178,2]
[332615973,1721353844343,-500.0,0.00019178,2]
[332615974,1721353844353,-501.99755832,0.00019178,2]
[332615975,1721353844362,-500.0,0.00019178,2]
[332615976,1721353844371,-500.0,0.00019178,2]
[332615977,1721353844381,-500.0,0.00019178,2]
[332615978,1721353844391,-500.0,0.00019178,2]
[332615979,1721353844400,-502.78378867,0.00019178,2]
[332615980,1721353844410,-500.0,0.00019178,2]
[332615981,1721353844420,-634.41,0.00019178,2]
[332615982,1721353844429,-1846.86,0.00019178,2]
[332615983,1721353844439,-500.0,0.00019178,2]
[332615984,1721353844448,-500.0,0.00019178,2]
[332615985,1721353844457,-1166.18,0.00019178,2]
[332615986,1721353844466,-500.0,0.00019178,2]
[332615987,1721353844475,-500.0,0.00019178,2]
[332615988,1721353844485,-500.0,0.00019178,2]
[332615989,1721353844494,-500.0,0.00019178,2]
[332615990,1721353844503,-500.0,0.00019178,2]
[332615991,1721353844514,-500.0,0.00019178,2]
[332615992,1721353844523,-500.0,0.00019178,2]
[332615993,1721353844533,-366.86046767,0.00019178,2]
[332615994,1721353844542,-500.0,0.00019178,2]
[332615995,1721353844552,-500.0,0.00019178,2]
[332615996,1721353844561,-500.0,0.00019178,2]
[332615997,1721353844571,-500.0,0.00019178,2]
[332615998,1721353844581,-500.0,0.00019178,2]
[332615999,1721353844591,-500.0,0.00019178,2]
[332616000,1721353844601,-500.0,0.00019178,2]
[332616001,1721353844610,-500.0,0.00019178,2]
[332616002,1721353844620,-510.93763126,0.00019178,2]
[332616003,1721353844629,-500.0,0.00019178,2]
[332616004,1721353844639,-500.0,0.00019178,2]
[332616005,1721353844649,-810.78,0.00019178,2]
[332616006,1721353844658,-500.0,0.00019178,2]
[332616007,1721353844668,-500.0,0.00019178,2]
[332616008,1721353844677,-500.0,0.00019178,2]
[332616009,1721353844687,-500.0,0.00019178,2]
[332616010,1721353844696,-631.4,0.00019178,2]
[332616011,1721353844706,-500.0,0.00019178,2]
[332616012,1721353844715,-507.95993019,0.00019178,2]
[332616013,1721353844725,-500.0,0.00019178,2]
[332616014,1721353844735,-3020.92,0.00019178,2]
[332616015,1721353844744,-588.8022729,0.00019178,2]
[332616016,1721353844754,-500.0,0.00019178,2]
[332616017,1721353844763,-2235.97,0.00019178,2]
[332616018,1721353844773,-500.0,0.00019178,2]
[332616019,1721353844783,-500.0,0.00019178,2]
[332616020,1721353844792,-1101.7,0.00019178,2]
[332616021,1721353844802,-500.0,0.00019178,2]
[332616022,1721353844811,-500.0,0.00019178,2]
[332616023,1721353844821,-206.97123623,0.00019178,2]
[332616024,1721353844830,-1693.1,0.00019178,2]
[332616025,1721353844840,-500.0,0.00019178,2]
[332616026,1721353844849,-510.41194972,0.00019178,2]
[332616027,1721353844859,-500.0,0.00019178,2]
[332616028,1721353844869,-1222.26,0.00019178,2]
[332616029,1721353844878,-2334.9,0.00019178,2]
[332616030,1721353844888,-500.0,0.00019178,2]
[332616031,1721353844897,-500.0,0.00019178,2]
[332616032,1721353844907,-500.0,0.00019178,2]
[332616033,1721353844917,-500.0,0.00019178,2]
[332616034,1721353844926,-500.0,0.00019178,2]
[332616035,1721353844936,-500.0,0.00019178,2]
[332616036,1721353844945,-500.0,0.00019178,2]
[332616037,1721353844956,-500.0,0.00019178,2]
[332616038,1721353844967,-1991.26,0.00019178,2]
[332616039,1721353844977,-506.97110985,0.00019178,2]
[332616040,1721353844986,-500.0,0.00019178,2]
[332616041,1721353844995,-914.45,0.00019178,2]
[332616042,1721353845005,-500.0,0.00019178,2]
[332616043,1721353845015,-500.0,0.00019178,2]
[332616044,1721353845025,-500.0,0.00019178,2]
[332616045,1721353845035,-873.05,0.00019178,2]
[332616046,1721353845045,-500.0,0.00019178,2]
[332616047,1721353845059,-507.652784,0.00019178,2]
[332616049,1721353845069,-521.55,0.00019178,2]
[332616050,1721353845078,-500.0,0.00019178,2]
[332616051,1721353845089,-1148.32,0.00019178,2]
[332616052,1721353845099,-500.0,0.00019178,2]
[332616053,1721353845109,-500.0,0.00019178,2]
[332616054,1721353845118,-587.02,0.00019178,2]
[332616055,1721353845129,-500.0,0.00019178,2]
[332616056,1721353845139,-500.0,0.00019178,2]
[332616057,1721353845149,-500.0,0.00019178,2]
[332616058,1721353845159,-500.0,0.00019178,2]
[332616059,1721353845168,-500.0,0.00019178,2]
[332616060,1721353845178,-1134.34,0.00019178,2]
[332616061,1721353845188,-501.25656096,0.00019178,2]
[332616062,1721353845197,-3160.7,0.00019178,2]
[332616063,1721353845208,-500.0,0.00019178,2]
[332616064,1721353845218,-500.0,0.00019178,2]
[332616065,1721353845228,-500.0,0.00019178,2]
[332616066,1721353845239,-502.61776133,0.00019178,2]
[332616067,1721353845248,-504.97797797,0.00019178,2]
[332616068,1721353845258,-500.0,0.00019178,2]
[332616069,1721353845268,-500.0,0.00019178,2]
[332616070,1721353845277,-500.0,0.00019178,2]
[332616071,1721353845287,-501.88413502,0.00019178,2]
[332616072,1721353845296,-500.0,0.00019178,2]
[332616073,1721353845306,-500.0,0.00019178,2]
[332616074,1721353845315,-1330.09,0.00019178,2]
[332616075,1721353845325,-500.0,0.00019178,2]
[332616076,1721353845334,-1014.02,0.00019178,2]
[332616077,1721353845344,-1161.58,0.00019178,2]
[332616078,1721353845353,-606.30003501,0.00019178,2]
[332616079,1721353845363,-500.0,0.00019178,2]
[332616080,1721353845372,-2622.11,0.00019178,2]
[332616081,1721353845382,-151.0,0.00019178,2]
[332616082,1721353845392,-151.0,0.00019178,2]
[332616083,1721353845403,-500.0,0.00019178,2]
[332616084,1721353845413,-151.0,0.00019178,2]
[332616085,1721353845423,-151.0,0.00019178,2]
[332616086,1721353845433,-151.0,0.00019178,2]
[332616087,1721353845443,-151.0,0.00019178,2]
[332616088,1721353845454,-1646.87,0.00019178,2]
[332616089,1721353845467,-3839.38,0.00019178,2]
[332616090,1721353845476,-2409.24,0.00019178,2]
[332616091,1721353845486,-151.0,0.00019178,2]
[332616092,1721353845495,-500.0,0.00019178,2]
[332616093,1721353845506,-500.0,0.00019178,2]
[332616094,1721353845516,-500.0,0.00019178,2]
[332616095,1721353845527,-471.67904458,0.00019178,2]
[332616096,1721353845537,-697.49,0.00019178,2]
[332616097,1721353845549,-500.0,0.00019178,2]
[332616098,1721353845559,-863.67,0.00019178,2]
[332616099,1721353845568,-1196.27,0.00019178,2]
[332616100,1721353845578,-417.77535033,0.00019178,2]
[332616101,1721353845589,-557.14,0.00019178,2]
[332616102,1721353845600,-500.0,0.00019178,2]
[332616103,1721353845610,-500.0,0.00019178,2]
[332616104,1721353845620,-500.0,0.00019178,2]
[332616105,1721353845630,-500.0,0.00019178,2]
[332616106,1721353845640,-502.2196872,0.00019178,2]
[332616107,1721353845650,-500.0,0.00019178,2]
[332616108,1721353845660,-500.0,0.00019178,2]
[332616109,1721353845669,-500.0,0.00019178,2]
[332616110,1721353845679,-500.0,0.00019178,2]
[332616111,1721353845690,-500.0,0.00019178,2]
[332616112,1721353845699,-558.77941315,0.00019178,2]
[332616113,1721353845710,-500.0,0.00019178,2]
[332616114,1721353845719,-500.0,0.00019178,2]
[332616115,1721353845729,-500.0,0.00019178,2]
[332616116,1721353845738,-1025.45,0.00019178,2]
[332616117,1721353845747,-500.0,0.00019178,2]
[332616118,1721353845757,-500.0,0.00019178,2]
[332616119,1721353845766,-500.0,0.00019178,2]
[332616120,1721353845775,-5180.71,0.00019178,2]
[332616121,1721353845784,-151.0,0.00019178,2]
[332616122,1721353845794,-151.0,0.00019178,2]
[332616123,1721353845804,-187.482505,0.00019178,2]
[332616124,1721353845815,-5021.07,0.00019178,2]
[332616125,1721353845824,-500.0,0.00019178,2]
[332616126,1721353845835,-2957.25,0.00019178,2]
[332616127,1721353845845,-799.34,0.00019178,2]
[332616128,1721353845855,-500.0,0.00019178,2]
[332616129,1721353845865,-513.29,0.00019178,2]
[332616130,1721353845874,-500.0,0.00019178,2]
[332616131,1721353845885,-500.0,0.00019178,2]
[332616132,1721353845894,-503.44195883,0.00019178,2]
[332616133,1721353845904,-500.0,0.00019178,2]
[332616134,1721353845916,-1014.83,0.00019178,2]
[332616135,1721353845927,-502.95284642,0.00019178,2]
[332616136,1721353845939,-357.13803418,0.00019178,2]
[332616137,1721353845949,-500.0,0.00019178,2]
[332616138,1721353845963,-500.0,0.00019178,2]
[332616139,1721353845974,-500.0,0.00019178,2]
[332616140,1721353845985,-501.81852784,0.00019178,2]
[332616141,1721353845995,-500.0,0.00019178,2]
[332616142,1721353846004,-182.864083,0.00019178,2]
[332616143,1721353846015,-500.0,0.00019178,2]
[332616144,1721353846024,-746.7,0.00019178,2]
[332616145,1721353846034,-596.14,0.00019178,2]
[332616146,1721353846044,-500.0,0.00019178,2]
[332616147,1721353846058,-503.88452599,0.00019178,2]
[332616148,1721353846067,-500.0,0.00019178,2]
[332616149,1721353846077,-563.31,0.00019178,2]
[332616150,1721353846087,-874.04,0.00019178,2]
[332616151,1721353846097,-500.0,0.00019178,2]
[332616152,1721353846106,-469.18571943,0.00019178,2]
[332616153,1721353846116,-204.315673,0.00019178,2]
[332616154,1721353846125,-204.315673,0.00019178,2]
[332616155,1721353846137,-204.315673,0.00019178,2]
[332616156,1721353846147,-204.315673,0.00019178,2]
[332616157,1721353846156,-500.0,0.00019178,2]
[332616158,1721353846166,-204.315673,0.00019178,2]
[332616160,1721353846175,-204.315673,0.00019178,2]
[332616161,1721353846185,-500.0,0.00019178,2]
[332616162,1721353846194,-204.315673,0.00019178,2]
[332616163,1721353846204,-3889.72,0.00019178,2]
[332616164,1721353846216,-3332.43487985,0.00019178,2]
[332616174,1721353847684,-159.93320028,0.00016632,2]
[332616175,1721353847695,-155.26035528,0.00017379,2]
[332616176,1721353847707,-405.42007104,0.00018779,2]
[332616177,1721353847721,-599.74512015,0.00019178,2]
[332616178,1721353847731,-1287.54,0.00019178,2]
[332616179,1721353847742,-503.1103378,0.00019178,2]
[332616180,1721353847754,-204.315673,0.00019178,2]
[332616181,1721353847764,-204.315673,0.00019178,2]
[332616182,1721353847774,-503.18218737,0.00019178,2]
[332616183,1721353847784,-204.315673,0.00019178,2]
[332616184,1721353847795,-22213.2,0.00019178,2]
[332616185,1721353847804,-204.315673,0.00019178,2]
[332616186,1721353847814,-204.315673,0.00019178,2]
[332616187,1721353847824,-204.315673,0.00019178,2]
[332616188,1721353847834,-204.315673,0.00019178,2]
[332616189,1721353847845,-10228.69,0.00019178,2]
[332616190,1721353847858,-500.0,0.00019178,2]
[332616191,1721353847869,-2021.29,0.00019178,2]
[332616192,1721353847880,-500.0,0.00019178,2]
[332616193,1721353847889,-153.761855,0.00019178,2]
[332616194,1721353847899,-515.75377433,0.00019178,2]
[332616195,1721353847908,-2272.77,0.00019178,2]
[332616196,1721353847917,-500.0,0.00019178,2]
[332616197,1721353847926,-200.620067,0.00019178,2]
[332616198,1721353847936,-500.0,0.00019178,2]
[332616199,1721353847945,-200.620067,0.00019178,2]
[332616200,1721353847956,-200.620067,0.00019178,2]
[332616201,1721353847967,-500.0,0.00019178,2]
[332616202,1721353847976,-500.0,0.00019178,2]
[332616203,1721353847985,-200.620067,0.00019178,2]
[332616204,1721353847997,-200.620067,0.00019178,2]
[332616205,1721353848008,-200.620067,0.00019178,2]
[332616206,1721353848019,-3057.36,0.00019178,2]
[332616207,1721353848029,-200.620067,0.00019178,2]
[332616208,1721353848040,-500.0,0.00019178,2]
[332616209,1721353848051,-500.0,0.00019178,2]
[332616210,1721353848066,-200.620067,0.00019178,2]
[332616211,1721353848075,-1677.57,0.00019178,2]
[332616212,1721353848085,-500.0,0.00019178,2]
[332616213,1721353848096,-200.620067,0.00019178,2]
[332616214,1721353848107,-500.0,0.00019178,2]
[332616215,1721353848117,-2230.65,0.00019178,2]
[332616216,1721353848128,-200.620067,0.00019178,2]
[332616217,1721353848139,-500.0,0.00019178,2]
[332616218,1721353848149,-239.274073,0.00019178,2]
[332616219,1721353848159,-200.620067,0.00019178,2]
[332616220,1721353848169,-200.620067,0.00019178,2]
[332616221,1721353848179,-200.620067,0.00019178,2]
[332616222,1721353848189,-200.620067,0.00019178,2]
[332616223,1721353848199,-3193.56,0.00019178,2]
[332616224,1721353848208,-1169.67,0.00019178,2]
[332616225,1721353848219,-500.0,0.00019178,2]
[332616226,1721353848229,-500.0,0.00019178,2]
[332616227,1721353848239,-502.3804658,0.00019178,2]
[332616228,1721353848250,-529.93265819,0.00019178,2]
[332616229,1721353848260,-500.0,0.00019178,2]
[332616230,1721353848269,-500.0,0.00019178,2]
[332616231,1721353848279,-4370.94,0.00019178,2]
[332616232,1721353848288,-500.0,0.00019178,2]
[332616233,1721353848299,-584.41285074,0.00019178,2]
[332616234,1721353848309,-565.36,0.00019178,2]
[332616235,1721353848320,-500.0,0.00019178,2]
[332616236,1721353848330,-489.80891818,0.00019178,2]
[332616237,1721353848341,-500.0,0.00019178,2]
[332616238,1721353848351,-500.0,0.00019178,2]
[332616239,1721353848361,-500.0,0.00019178,2]
[332616240,1721353848372,-500.0,0.00019178,2]
[332616241,1721353848382,-151.0,0.00019178,2]
[332616242,1721353848391,-506.27484971,0.00019178,2]
[332616243,1721353848401,-151.0,0.00019178,2]
[332616244,1721353848411,-5874.63,0.00019178,2]
[332616245,1721353848421,-151.0,0.00019178,2]
[332616246,1721353848431,-151.0,0.00019178,2]
[332616247,1721353848441,-151.0,0.00019178,2]
[332616248,1721353848452,-151.0,0.00019178,2]
[332616249,1721353848462,-151.0,0.00019178,2]
[332616250,1721353848472,-151.0,0.00019178,2]
[332616251,1721353848482,-151.0,0.00019178,2]
[332616252,1721353848491,-151.0,0.00019178,2]
[332616253,1721353848501,-151.0,0.00019178,2]
[332616254,1721353848512,-500.0,0.00019178,2]
[332616255,1721353848523,-249.037048,0.00019178,2]
[332616256,1721353848534,-500.0,0.00019178,2]
[332616257,1721353848544,-3674.35,0.00019178,2]
[332616258,1721353848555,-500.0,0.00019178,2]
[332616259,1721353848565,-500.0,0.00019178,2]
[332616260,1721353848575,-3519.54,0.00019178,2]
[332616261,1721353848585,-500.0,0.00019178,2]
[332616262,1721353848595,-500.0,0.00019178,2]
[332616263,1721353848605,-500.0,0.00019178,2]
[332616264,1721353848616,-643.606211,0.00019178,2]
[332616265,1721353848626,-643.606211,0.00019178,2]
[332616266,1721353848636,-643.606211,0.00019178,2]
[332616267,1721353848645,-643.606211,0.00019178,2]
[332616268,1721353848657,-1009.0,0.00019178,2]
[332616269,1721353848667,-643.606211,0.00019178,2]
[332616270,1721353848678,-643.606211,0.00019178,2]
[332616271,1721353848689,-643.606211,0.00019178,2]
[332616272,1721353848699,-643.606211,0.00019178,2]
[332616273,1721353848710,-500.0,0.00019178,2]
[332616274,1721353848720,-643.606211,0.00019178,2]
[332616275,1721353848730,-643.606211,0.00019178,2]
[332616276,1721353848741,-643.606211,0.00019178,2]
[332616277,1721353848750,-500.0,0.00019178,2]
[332616278,1721353848760,-500.0,0.00019178,2]
[332616279,1721353848771,-643.606211,0.00019178,2]
[332616280,1721353848781,-500.0,0.00019178,2]
[332616281,1721353848791,-643.606211,0.00019178,2]
[332616282,1721353848802,-643.606211,0.00019178,2]
[332616283,1721353848812,-500.0,0.00019178,2]
[332616284,1721353848822,-480.02359022,0.00019178,2]
[332616285,1721353848832,-500.0,0.00019178,2]
[332616286,1721353848841,-9456.75,0.00019178,2]
[332616287,1721353848851,-2395.62,0.00019178,2]
[332616288,1721353848862,-500.0,0.00019178,2]
[332616289,1721353848873,-1217.06,0.00019178,2]
[332616290,1721353848884,-500.0,0.00019178,2]
[332616291,1721353848895,-502.29169529,0.00019178,2]
[332616292,1721353848905,-500.0,0.00019178,2]
[332616293,1721353848915,-500.0,0.00019178,2]
[332616294,1721353848924,-1174.67,0.00019178,2]
[332616295,1721353848935,-500.0,0.00019178,2]
[332616296,1721353848945,-500.0,0.00019178,2]
[332616297,1721353848957,-502.97618299,0.00019178,2]
[332616298,1721353848967,-3307.7,0.00019178,2]
[332616299,1721353848977,-500.0,0.00019178,2]
[332616300,1721353848988,-497.71237173,0.00019178,2]
[332616301,1721353848998,-500.0,0.00019178,2]
[332616302,1721353849008,-500.0,0.00019178,2]
[332616303,1721353849019,-500.0,0.00019178,2]
[332616304,1721353849029,-500.0,0.00019178,2]
[332616305,1721353849039,-500.0,0.00019178,2]
[332616306,1721353849051,-1006.53051033,0.00019178,2]
[332616307,1721353849065,-944.95,0.00019178,2]
[332616308,1721353849075,-500.0,0.00019178,2]
[332616309,1721353849085,-501.65098041,0.00019178,2]
[332616310,1721353849096,-14320.64,0.00019178,2]
[332616311,1721353849107,-500.0,0.00019178,2]
[332616312,1721353849118,-500.0,0.00019178,2]
[332616313,1721353849128,-1122.49,0.00019178,2]
[332616314,1721353849138,-500.0,0.00019178,2]
[332616315,1721353849150,-513.74867994,0.00019178,2]
[332616316,1721353849160,-500.0,0.00019178,2]
[332616317,1721353849170,-6492.49,0.00019178,2]
[332616318,1721353849180,-535.38,0.00019178,2]
[332616319,1721353849190,-1387.1,0.00019178,2]
[332616320,1721353849200,-634.58,0.00019178,2]
[332616321,1721353849209,-2902.89,0.00019178,2]
[332616322,1721353849221,-502.47574919,0.00019178,2]
[332616323,1721353849231,-1038.74,0.00019178,2]